fUST/lending_fUST_20251227
["ID","MTS","AMOUNT","RATE_DAILY","PERIOD"]
[399899148,1766832639962,-500.0,0.00015102,2]
[399899149,1766832639972,-500.0,0.00015102,2]
[399899150,1766832639982,-500.0,0.00015102,2]
[399899151,1766832639992,-500.0,0.00015102,2]
[399899152,1766832640005,-173.46403824,0.00015102,2]
[399899153,1766832640015,-500.0,0.00015102,2]
[399899155,1766832640024,-500.0,0.00015102,2]
[399899157,1766832640034,-500.0,0.00015102,2]
[399899159,1766832640044,-155.33929583,0.00015102,2]
[399899160,1766832640055,-500.0,0.00015102,2]
[399899161,1766832640064,-500.0,0.00015102,2]
[399899162,1766832640074,-500.0,0.00015102,2]
[399899163,1766832640084,-600.0,0.00015104,2]
[399899164,1766832640094,-2217.59943182,0.00015195,2]
[399899165,1766832640104,-296.056928,0.00015359,2]
[399899166,1766832640114,-926.01,0.000154,2]
[399899167,1766832640125,-7762.55523588,0.00015412,2]
[399899183,1766832643781,-560.0,0.00015412,2]
[399899249,1766832644402,-5164.41478538,0.00015412,2]
[399899251,1766832644414,-15692.49686814,0.00015412,2]
[399899253,1766832644424,-926.01,0.000157,2]
[399899255,1766832644434,-926.01,0.00016,2]
[399899257,1766832644443,-926.01,0.000163,2]
[399899259,1766832644453,-281.0998613,0.00016401,2]
[399899261,1766832644462,-926.01,0.000166,2]
[399899263,1766832644472,-720.0,0.00016615,2]
[399899265,1766832644482,-674.72869076,0.00016793,2]
[399899267,1766832644494,-729.50946824,0.00016793,2]
[399899269,1766832644504,-336.75271661,0.00017,2]
[399899346,1766832645815,-589.25728339,0.00017,2]
[399899347,1766832645825,-313.3278853,0.00017197,2]
[399899348,1766832645834,-926.01,0.000173,2]
[399899349,1766832645844,-926.01,0.000176,2]
[399899350,1766832645854,-926.01,0.000179,2]
[399899351,1766832645863,-420.66437951,0.000182,2]
[399899352,1766832680386,151.2,0.000144,2]
[399899366,1766832741928,698.38,0.000144,2]
[399899371,1766832799596,500.0,0.00013273,2]
[399899372,1766832803714,500.0,0.00013273,2]
[399899373,1766832804715,364.90930198,0.00013273,2]
[399899374,1766832853530,500.0,0.00013273,2]
[399899375,1766832910557,300.0,0.00013673,2]
[399899376,1766832929346,168.92,0.0001,2]
[399899377,1766832931844,168.92,0.000102,2]
[399899378,1766832934304,168.92,0.000104,2]
[399899379,1766832963369,500.0,0.00013273,2]
[399899380,1766832965993,5000.0,0.0001439,2]
[399899381,1766832967012,500.0,0.00013273,2]
[399899382,1766832967044,150.0,0.00010742,2]
[399899383,1766832967440,150.0,0.00011719,2]
[399899384,1766832967847,150.0,0.00012695,2]
[399899385,1766832968245,150.0,0.00013672,2]
[399899386,1766832988926,1035.20187191,0.0001439,2]
[399899387,1766833023129,198.64468688,0.00013699,2]
[399899388,1766833025968,500.0,0.00013273,2]
[399899389,1766833030265,300.0,0.00013673,2]
[399899390,1766833043988,500.0,0.00013273,2]
[399899391,1766833044250,500.0,0.00013273,2]
[399899395,1766833369869,500.0,0.00030134,120]
[399899398,1766833551167,-205.68126125,0.00014399,2]
[399899399,1766833555145,-415.55729775,0.00014399,2]
[399899400,1766833555167,-300.0,0.00014399,2]
[399899401,1766833555190,-1200.0,0.00014399,2]
[399899402,1766833555212,-240.3627317,0.000144,2]
[399899403,1766833555234,-626.0,0.000144,2]
[399899404,1766833555255,-500.0,0.000144,2]
[399899405,1766833555277,-50.15309612,0.000144,2]
[399899407,1766833699485,500.0,0.00030134,120]
[399899408,1766833699726,500.0,0.00030134,120]
[399899409,1766833699992,500.0,0.00030134,120]
[399899410,1766833700240,501.28158637,0.00030134,120]
[399899411,1766833752087,-449.84690388,0.000144,2]
[399899412,1766833752109,-271.10014075,0.000144,2]
[399899413,1766833752130,-235.55547707,0.00014543,2]
[399899414,1766833752153,-300.0,0.00014687,2]
[399899415,1766833752185,-300.0,0.00014687,2]
[399899416,1766833752208,-300.0,0.00014687,2]
[399899417,1766833752229,-300.0,0.00014687,2]
[399899418,1766833752251,-300.0,0.00014687,2]
[399899419,1766833752273,-300.0,0.00014687,2]
[399899420,1766833752295,-300.0,0.00014687,2]
[399899421,1766833752316,-300.0,0.00014687,2]
[399899422,1766833752338,-300.0,0.00014687,2]
[399899423,1766833752360,-300.0,0.00014687,2]
[399899424,1766833752381,-300.0,0.00014687,2]
[399899425,1766833752404,-300.0,0.00014687,2]
[399899426,1766833752426,-300.0,0.00014687,2]
[399899427,1766833752448,-300.0,0.00014687,2]
[399899428,1766833752471,-300.0,0.00014687,2]
[399899429,1766833752491,-6828.06430129,0.00014687,2]
[399899430,1766833763114,-4154.89662233,0.00014687,2]
[399899431,1766833771086,-153.58,0.000144,2]
[399899432,1766833771106,-165.39200815,0.00014687,2]
[399899433,1766833819972,384.12282721,0.000144,2]
[399899460,1766833831804,-303.37717279,0.000144,2]
[399899462,1766833831815,-687.5,0.000147,2]
[399899464,1766833831824,-687.5,0.00015,2]
[399899467,1766833831834,-687.5,0.000154,2]
[399899469,1766833831844,-687.5,0.000157,2]
[399899471,1766833831854,-733.2346438,0.00015758,2]
[399899473,1766833831864,-687.5,0.00016,2]
[399899475,1766833831873,-687.5,0.000163,2]
[399899476,1766833831883,-277.95546294,0.00016543,2]
[399899478,1766833831893,-687.5,0.000166,2]
[399899480,1766833831903,-215.87594688,0.00016828,2]
[399899481,1766833831913,-167.79406109,0.00016889,2]
[399899482,1766833831923,-687.5,0.00017,2]
[399899483,1766833831933,-600.0,0.00017164,2]
[399899484,1766833831943,-687.5,0.000173,2]
[399899485,1766833831953,-448.75715535,0.00017309,2]
[399899486,1766833831962,-304.523674,0.00017501,2]
[399899487,1766833831972,-687.5,0.000176,2]
[399899488,1766833831981,-687.5,0.000179,2]
[399899489,1766833831991,-687.5,0.000182,2]
[399899490,1766833832001,-168.0,0.00018276,2]
[399899491,1766833832011,-168.0,0.00018343,2]
[399899492,1766833832021,-168.0,0.00018395,2]
[399899493,1766833832031,-168.0,0.00018507,2]
[399899494,1766833832043,-168.0,0.00018531,2]
[399899495,1766833832053,-320.35544881,0.00018543,2]
[399899496,1766833832062,-687.5,0.000186,2]
[399899497,1766833832072,-1000.0,0.00018742,2]
[399899498,1766833832082,-277.28847832,0.00018822,2]
[399899499,1766833832092,-499.11926098,0.00018822,2]
[399899500,1766833832103,-265.37994141,0.00018822,2]
[399899501,1766833832118,-346.2311094,0.00018822,2]
[399899502,1766833832128,-333.39089249,0.00018822,2]
[399899503,1766833832138,-168.0,0.00018846,2]
[399899504,1766833832148,-46.53323652,0.0001888,2]
[399899514,1766833838077,-500.0,0.00017163,2]
[399899515,1766833838087,-500.0,0.00017163,2]
[399899516,1766833838098,-500.0,0.00017163,2]
[399899517,1766833838108,-500.0,0.00017163,2]
[399899518,1766833838118,-500.0,0.00017163,2]
[399899519,1766833838128,-500.0,0.00017163,2]
[399899520,1766833838138,-500.0,0.00017163,2]
[399899521,1766833838149,-500.0,0.00017163,2]
[399899522,1766833838159,-170.82053662,0.00017163,2]
[399899523,1766833838168,-120.22600006,0.00017163,2]
[399899524,1766833838183,-461.985,0.00017163,2]
[399899525,1766833838196,-47.85204493,0.00017163,2]
[399899526,1766833838208,-456.87487467,0.00017163,2]
[399899527,1766833838227,-673.46676348,0.0001888,2]
[399899528,1766833838237,-687.5,0.000189,2]
[399899529,1766833838247,-168.0,0.00018901,2]
[399899530,1766833838258,-168.0,0.00018925,2]
[399899531,1766833838268,-167.79406109,0.00018953,2]
[399899532,1766833838279,-168.0,0.00018966,2]
[399899533,1766833838289,-168.0,0.00019074,2]
[399899534,1766833838299,-168.0,0.00019141,2]
[399899535,1766833838310,-390.35311839,0.00019198,2]
[399899536,1766833838320,-221.11501425,0.00019198,2]
[399899537,1766833838330,-151.0,0.000192,2]
[399899538,1766833838341,-151.0,0.000192,2]
[399899539,1766833838350,-45.69330984,0.000192,2]
[399899540,1766833838363,-641.80669016,0.000192,2]
[399899541,1766833838372,-58.5051355,0.00019209,2]
[399899542,1766833838386,-104.55970178,0.00019209,2]
[399899543,1766833838395,-471.42482677,0.00019209,2]
[399899544,1766833838406,-500.0,0.00019209,2]
[399899545,1766833838416,-500.0,0.00019209,2]
[399899546,1766833838428,-500.0,0.00019209,2]
[399899547,1766833838440,-500.0,0.00019209,2]
[399899548,1766833838450,-500.0,0.00019209,2]
[399899549,1766833838460,-500.0,0.00019209,2]
[399899550,1766833838470,-500.0,0.00019209,2]
[399899551,1766833838479,-308.73750708,0.00019209,2]
[399899552,1766833838489,-500.0,0.00019209,2]
[399899553,1766833838499,-300.0,0.00019209,2]
[399899554,1766833838509,-151.0,0.0001921,2]
[399899555,1766833838519,-20914.6033921,0.0001921,2]
[399899559,1766833840118,-62.74808146,0.0001921,2]
[399899560,1766833840143,-546.8493338,0.0001921,2]
[399899675,1766833844437,-4635.43008,0.0001921,2]
[399899676,1766833844451,-7728.459,0.0001921,2]
[399899677,1766833844462,-3965.18829825,0.0001921,2]
[399899685,1766833845964,-236.67367166,0.00017163,2]
[399899686,1766833846180,-34631.65951569,0.0001921,2]
[399899687,1766833846192,-1801.77212347,0.0001921,2]
[399899688,1766833846208,-405.09040808,0.0001921,2]
[399899689,1766833991645,150.0,0.00012424,2]
[399899690,1766833992225,150.0,0.00013553,2]
[399899692,1766834343226,500.0,0.00013273,2]
[399899693,1766834346212,500.0,0.00013273,2]
[399899694,1766834353194,300.0,0.00013673,2]
[399899695,1766834362534,500.0,0.00013273,2]
[399899696,1766834365969,500.0,0.00013273,2]
[399899697,1766834376111,150.0,0.00012346,2]
[399899698,1766834376504,150.0,0.00013468,2]
[399899699,1766834406505,500.0,0.00013273,2]
[399899700,1766834413946,500.0,0.00013273,2]
[399899701,1766834505011,150.0,0.00012372,2]
[399899702,1766834505427,150.0,0.00013496,2]
[399899703,1766834574487,150.0,0.00013025,2]
[399899704,1766834574901,150.0,0.00014209,2]
[399899705,1766834586610,500.0,0.00013273,2]
[399899706,1766834641750,150.0,0.0001232,2]
[399899707,1766834642151,150.0,0.0001344,2]
[399899708,1766834707145,150.0,0.00012319,2]
[399899710,1766834744165,-301.83,0.000144,2]
[399899711,1766834744189,-241.00556984,0.00014475,2]
[399899712,1766834744211,-130.41674523,0.0001455,2]
[399899714,1766834826351,500.0,0.00013273,2]
[399899719,1766834943327,500.0,0.00013273,2]
[399899720,1766834956107,-236.18545844,0.00014475,2]
[399899721,1766834956128,-445.84343533,0.0001455,2]
[399899722,1766834964094,-295.8,0.000144,2]
[399899723,1766834964117,-51.73981944,0.0001455,2]
[399899724,1766835023798,470.62880978,0.000144,2]
[399899725,1766835023822,15.55119022,0.000144,2]
[399899779,1766835038089,-486.18,0.000147,2]
[399899780,1766835038099,-593.77632804,0.000149,2]
[399899781,1766835038109,-634.0,0.000149,2]
[399899782,1766835038118,-1016.87357748,0.00015,2]
[399899783,1766835038128,-486.18,0.00015,2]
[399899784,1766835038138,-94.19239629,0.00015068,2]
[399899820,1766835040240,-66.01070771,0.00015068,2]
[399899822,1766835040251,-486.18,0.000154,2]
[399899824,1766835040261,-486.18,0.000157,2]
[399899828,1766835040280,-486.18,0.00016,2]
[399899830,1766835040296,-287.0,0.00016299,2]
[399899832,1766835040306,-215.62469482,0.00016299,2]
[399899834,1766835040316,-500.0,0.00016299,2]
[399899836,1766835040326,-178.44559708,0.00016299,2]
[399899838,1766835040335,-500.0,0.00016299,2]
[399899841,1766835040345,-500.0,0.00016299,2]
[399899843,1766835040361,-500.0,0.00016299,2]
[399899845,1766835040371,-500.0,0.00016299,2]
[399899847,1766835040381,-608.70571829,0.00016299,2]
[399899849,1766835040391,-500.0,0.00016299,2]
[399899851,1766835040401,-500.0,0.00016299,2]
[399899853,1766835040411,-500.0,0.00016299,2]
[399899855,1766835040420,-217.43054163,0.00016299,2]
[399899857,1766835040430,-500.0,0.00016299,2]
[399899859,1766835040439,-500.0,0.00016299,2]
[399899861,1766835040449,-239.69043095,0.00016299,2]
[399899863,1766835040458,-650.0,0.00016299,2]
[399899865,1766835040469,-500.0,0.00016299,2]
[399899867,1766835040479,-500.0,0.00016299,2]
[399899869,1766835040489,-500.0,0.00016299,2]
[399899871,1766835040499,-500.0,0.00016299,2]
[399899873,1766835040509,-5451.02162071,0.000163,2]
[399899875,1766835040522,-32822.14705994,0.000163,2]
[399899878,1766835040532,-486.18,0.000163,2]
[399899879,1766835040542,-278.69884096,0.00016475,2]
[399899882,1766835040552,-1538.6337113,0.00016505,2]
[399899884,1766835040562,-486.18,0.000166,2]
[399899886,1766835040572,-486.18,0.00017,2]
[399899888,1766835040582,-486.18,0.000173,2]
[399899890,1766835040591,-486.18,0.000176,2]
[399899892,1766835040600,-486.18,0.000179,2]
[399899894,1766835040610,-210.51897031,0.00018108,2]
[399899896,1766835040619,-2230.315306,0.0001811,2]
[399899898,1766835040629,-533.88981493,0.0001811,2]
[399899900,1766835040639,-500.0,0.0001811,2]
[399899902,1766835040648,-341.9888739,0.0001811,2]
[399899903,1766835040658,-486.18,0.000182,2]
[399899905,1766835040667,-154.25062995,0.00018265,2]
[399899907,1766835040678,-183.04772164,0.00018265,2]
[399899910,1766835040688,-321.21222348,0.00018475,2]
[399899912,1766835040698,-486.18,0.000186,2]
[399899914,1766835040708,-2312.83697232,0.00018658,2]
[399899916,1766835040717,-365.00297956,0.00018734,2]
[399899918,1766835040727,-12887.45171619,0.000188,2]
[399900278,1766835044379,-2218.93996727,0.000188,2]
[399900384,1766835045426,-632.19026469,0.000188,2]
[399901299,1766835078648,259.03,0.000144,2]
[399901300,1766835099594,207.26351811,0.000143,2]
[399901301,1766835127859,500.0,0.00013273,2]
[399901302,1766835137390,500.0,0.00013273,2]
[399901303,1766835145779,355.23,0.000144,2]
[399901304,1766835202516,500.0,0.00013273,2]
[399901305,1766835205196,500.0,0.00013273,2]
[399901306,1766835219491,150.0,0.00012283,2]
[399901307,1766835219917,150.0,0.00013399,2]
[399901308,1766835265656,-348.12,0.000144,2]
[399901309,1766835265679,-235.67107777,0.00014458,2]
[399901310,1766835265704,-150.0,0.00014516,2]
[399901311,1766835265728,-266.20892223,0.000147,2]
[399901312,1766835269468,-81.91107777,0.000147,2]
[399901313,1766835269493,-348.12,0.00015,2]
[399901314,1766835285320,-348.12,0.000154,2]
[399901315,1766835285345,-150.0,0.00015632,2]
[399901316,1766835285367,-348.12,0.000157,2]
[399901317,1766835285388,-153.76,0.00016,2]
[399901318,1766835286778,150.0,0.00012282,2]
[399901319,1766835287261,150.0,0.00013399,2]
[399901320,1766835293012,-194.36,0.00016,2]
[399901321,1766835306510,-278.09187176,0.00016458,2]
[399901322,1766835307391,500.0,0.00013273,2]
[399901323,1766835325479,-358.69,0.000144,2]
[399901324,1766835325505,-358.69,0.000147,2]
[399901325,1766835325531,-282.62,0.00015,2]
[399901326,1766835335753,-76.07,0.00015,2]
[399901327,1766835335775,-358.69,0.000154,2]
[399901328,1766835335796,-358.69,0.000157,2]
[399901329,1766835335818,-206.55,0.00016,2]
[399901330,1766835343772,-152.14,0.00016,2]
[399901331,1766835343795,-358.69,0.000163,2]
[399901332,1766835343816,-358.69,0.000166,2]
[399901333,1766835343839,-130.48,0.00017,2]
[399901334,1766835357127,-228.21,0.00017,2]
[399901335,1766835357156,-358.69,0.000173,2]
[399901336,1766835357182,-358.69,0.000176,2]
[399901337,1766835357205,-54.41,0.000179,2]
[399901338,1766835383384,-386.34,0.000144,2]
[399901339,1766835383411,-386.34,0.000147,2]
[399901340,1766835383439,-227.32,0.00015,2]
[399901341,1766835402235,-159.02,0.00015,2]
[399901342,1766835402260,-386.34,0.000154,2]
[399901343,1766835402283,-386.34,0.000157,2]
[399901344,1766835402306,-68.3,0.00016,2]
[399901345,1766835446976,-318.69,0.000144,2]
[399901346,1766835446999,-318.69,0.000147,2]
[399901347,1766835447021,-318.69,0.00015,2]
[399901348,1766835447047,-43.93,0.000154,2]
[399901349,1766835454965,-274.76,0.000154,2]
[399901350,1766835454985,-318.69,0.000157,2]
[399901351,1766835455008,-318.69,0.00016,2]
[399901352,1766835455742,5000.0,0.00030137,120]
[399901353,1766835467205,-318.69,0.000163,2]
[399901354,1766835467228,-318.69,0.000166,2]
[399901355,1766835467251,-318.69,0.00017,2]
[399901356,1766835467273,-43.93,0.000173,2]
[399901357,1766835479618,150.0,0.00012282,2]
[399901358,1766835485139,500.0,0.00013273,2]
[399901359,1766835543440,150.0,0.0001228,2]
[399901361,1766835654464,5000.0,0.0001439,2]
[399901369,1766835667090,500.0,0.00013273,2]
[399901370,1766835667212,451.72460314,0.00013273,2]
[399901371,1766835695495,269.776573,0.00013699,2]
[399901372,1766835894684,1009.36738325,0.000143,2]
[399901373,1766835954174,-263.62,0.000144,2]
[399901374,1766835954197,-231.93581878,0.0001455,2]
[399901375,1766835954221,-247.07103213,0.000147,2]
[399901376,1766836005710,414.65,0.0001439,2]
[399901377,1766836054132,-253.4,0.000144,2]
[399901378,1766836054156,-253.4,0.000147,2]
[399901379,1766836054178,-197.3486818,0.00014943,2]
[399901383,1766836164348,243.26,0.000144,2]
[399901384,1766836174123,-154.81223058,0.000147,2]
[399901388,1766836223962,432.9,0.000144,2]
[399901420,1766836232117,-209.54756206,0.00014673,2]
[399901422,1766836232127,-432.9,0.000147,2]
[399901424,1766836232137,-497.93523123,0.00014821,2]
[399901430,1766836232177,-135.06476877,0.00014821,2]
[399901432,1766836232187,-227.2971024,0.00014822,2]
[399901434,1766836232196,-210.48587577,0.00015,2]
[399901580,1766836240772,-222.41412423,0.00015,2]
[399901581,1766836240783,-432.9,0.000154,2]
[399901582,1766836240793,-417.9799839,0.00015515,2]
[399901583,1766836240803,-432.9,0.000157,2]
[399901584,1766836240813,-432.9,0.00016,2]
[399901585,1766836240823,-432.9,0.000163,2]
[399901586,1766836240833,-162.76935449,0.00016336,2]
[399901587,1766836240844,-432.9,0.000166,2]
[399901588,1766836240854,-268.21058083,0.00016822,2]
[399901589,1766836240864,-432.9,0.00017,2]
[399901590,1766836240874,-432.9,0.000173,2]
[399901591,1766836240884,-615.20342134,0.00017515,2]
[399901592,1766836240894,-432.9,0.000176,2]
[399901593,1766836240904,-417.9799839,0.00017794,2]
[399901594,1766836240913,-432.9,0.000179,2]
[399901595,1766836240923,-432.9,0.000182,2]
[399901596,1766836240936,-277.65113391,0.00018374,2]
[399901597,1766836240947,-423.59103008,0.00018374,2]
[399901598,1766836240961,-329.48589895,0.00018478,2]
[399901599,1766836240971,-432.9,0.000186,2]
[399901600,1766836240981,-300.0,0.00018698,2]
[399901601,1766836240992,-300.0,0.00018698,2]
[399901602,1766836241002,-500.0,0.00018698,2]
[399901603,1766836241011,-500.0,0.00018698,2]
[399901604,1766836241021,-500.0,0.00018698,2]
[399901605,1766836241031,-500.0,0.00018698,2]
[399901606,1766836241040,-294.64593454,0.00018698,2]
[399901607,1766836241050,-500.0,0.00018698,2]
[399901608,1766836241060,-247.21851374,0.00018698,2]
[399901625,1766836244452,-267.39549036,0.00018698,2]
[399901626,1766836244462,-328.76893228,0.00018698,2]
[399901627,1766836245135,-168.69916586,0.00018698,2]
[399901628,1766836245146,-500.0,0.00018698,2]
[399901629,1766836245156,-500.0,0.00018698,2]
[399901630,1766836245169,-1200.0,0.00018699,2]
[399901631,1766836245179,-280.75715773,0.00018699,2]
[399901632,1766836245189,-500.0,0.00018699,2]
[399901633,1766836245199,-218.82567079,0.00018699,2]
[399901634,1766836245208,-50562.04839309,0.000187,2]
[399901635,1766836245220,-1313.0,0.000187,2]
[399901636,1766836245231,-11940.89469203,0.000187,2]
[399901649,1766836246290,-2281.28905335,0.000187,2]
[399901650,1766836279354,171.03,0.000144,2]
[399901651,1766836326148,500.0,0.00013273,2]
[399901652,1766836326602,315.11,0.000144,2]
[399901653,1766836335614,500.0,0.00013273,2]
[399901654,1766836374304,150.0,9.346e-05,2]
[399901655,1766836374715,150.0,0.00010196,2]
[399901656,1766836375106,150.0,0.00011045,2]
[399901657,1766836375503,150.0,0.00011895,2]
[399901658,1766836375925,150.0,0.00012745,2]
[399901659,1766836376341,150.0,0.00013594,2]
[399901660,1766836387417,500.0,0.00013699,2]
[399901661,1766836389464,500.0,0.00013273,2]
[399901662,1766836402784,500.0,0.00013273,2]
[399901663,1766836405457,500.0,0.00013273,2]
[399901664,1766836441560,150.0,0.00012338,2]
[399901665,1766836567392,500.0,0.00013273,2]
[399901668,1766837143137,-153.05,0.000144,2]
[399901669,1766837143158,-225.82428506,0.0001455,2]
[399901670,1766837143179,-153.05,0.000149,2]
[399901671,1766837143199,-153.05,0.000153,2]
[399901672,1766837143219,-122.60406467,0.000158,2]
[399901673,1766837154141,-526.39593533,0.000158,2]
[399901674,1766837154166,-153.05,0.000158,2]
[399901675,1766837154189,-153.05,0.000162,2]
[399901676,1766837154211,-203.04464098,0.00016541,7]
[399901677,1766837154233,-266.47265637,0.0001655,2]
[399901678,1766837154254,-153.05,0.000167,2]
[399901679,1766837154276,-153.05,0.000172,2]
[399901680,1766837154296,-240.95109975,0.00017376,7]
[399901681,1766837154317,-153.05,0.000176,2]
[399901682,1766837154339,-153.05,0.000181,2]
[399901683,1766837154361,-307.12102768,0.0001855,2]
[399901684,1766837154385,-228.2742602,0.00018597,2]
[399901685,1766837239079,-216.61014196,0.000185,2]
[399901686,1766837239101,-729.5094685,0.0001856,2]
[399901687,1766837239122,-300.0,0.00018596,2]
[399901688,1766837239143,-381.00204423,0.00018597,2]
[399901689,1766837365811,153.05,0.000144,2]
[399901690,1766837371114,-153.05,0.00015,2]
[399901691,1766837371137,-153.05,0.000156,2]
[399901692,1766837371158,-153.05,0.000163,2]
[399901693,1766837371194,-1978.358599,0.00016399,2]
[399901694,1766837371216,-153.05,0.000169,2]
[399901695,1766837413612,204.47170419,0.000144,2]
[399901696,1766837413639,137.03829581,0.000144,2]
[399901737,1766837438426,-341.51,0.000147,2]
[399901738,1766837438437,-341.51,0.00015,2]
[399901739,1766837438448,-341.51,0.000154,2]
[399901740,1766837438457,-341.51,0.000157,2]
[399901741,1766837438467,-341.51,0.00016,2]
[399901742,1766837438478,-341.51,0.000163,2]
[399901743,1766837438488,-341.51,0.000166,2]
[399901744,1766837438498,-341.51,0.00017,2]
[399901745,1766837438508,-341.51,0.000173,2]
[399901746,1766837438518,-341.51,0.000176,2]
[399901747,1766837438528,-341.51,0.000179,2]
[399901748,1766837438537,-4443.1818192,0.000179,2]
[399901749,1766837438547,-158.35683299,0.00018,2]
[399901750,1766837438557,-341.51,0.000182,2]
[399901751,1766837438571,-189.53387425,0.000185,2]
[399901752,1766837438581,-695.0,0.000185,2]
[399901753,1766837438591,-184.0,0.00018596,2]
[399901754,1766837438600,-300.0,0.00018596,2]
[399901755,1766837438611,-915.0,0.00018596,2]
[399901756,1766837438621,-1200.0,0.00018597,2]
[399901757,1766837438633,-166.38534424,0.00018597,2]
[399901758,1766837438643,-495.40328491,0.00018597,2]
[399901759,1766837438654,-157.97166386,0.00018597,2]
[399901760,1766837438663,-209.83592568,0.00018598,2]
[399901761,1766837438675,-5906.73812909,0.00018598,2]
[399901762,1766837438684,-246.25487168,0.00018599,2]
[399901763,1766837438694,-500.0,0.00018599,2]
[399901764,1766837438704,-403.89446893,0.00018599,2]
[399901765,1766837438715,-5655.95540857,0.000186,2]
[399901766,1766837438727,-1197.57370402,0.000186,2]
[399901791,1766837445989,-8910.51487676,0.000186,2]
[399901793,1766837446222,-434.18626579,0.000186,2]
[399901794,1766837446660,-241.20055938,0.000186,2]
[399901795,1766837467689,500.0,0.00013273,2]
[399901796,1766837468151,500.0,0.00013273,2]
[399901797,1766837483683,500.0,0.00013273,2]
[399901798,1766837486793,500.0,0.00013273,2]
[399901799,1766837521576,347.0583864,0.00030134,120]
[399901800,1766837534054,500.0,0.00013273,2]
[399901801,1766837539084,283.64,0.000144,2]
[399901802,1766837540249,177.48805562,0.00030134,120]
[399901803,1766837587140,500.0,0.00013273,2]
[399901804,1766837624449,928.24,0.00030134,120]
[399901805,1766837624701,928.24,0.00030134,120]
[399901806,1766837624965,928.24,0.00030134,120]
[399901807,1766837625190,928.24,0.00030134,120]
[399901808,1766837625430,928.24,0.00030134,120]
[399901809,1766837625673,928.24,0.00030134,120]
[399901810,1766837625908,928.24,0.00030134,120]
[399901811,1766837626420,928.24,0.00030134,120]
[399901812,1766837626454,928.24,0.00030134,120]
[399901813,1766837626655,928.24,0.00030134,120]
[399901814,1766837626888,928.24,0.00030134,120]
[399901815,1766837627118,928.24,0.00030134,120]
[399901816,1766837627341,928.24,0.00030134,120]
[399901817,1766837627665,928.24,0.00030134,120]
[399901818,1766837627791,928.24,0.00030134,120]
[399901819,1766837628048,928.24,0.00030134,120]
[399901820,1766837628291,928.24,0.00030134,120]
[399901821,1766837628553,928.24,0.00030134,120]
[399901822,1766837628806,928.24,0.00030134,120]
[399901823,1766837629043,928.24,0.00030134,120]
[399901824,1766837629285,928.24,0.00030134,120]
[399901825,1766837629525,928.24,0.00030134,120]
[399901826,1766837629772,928.24,0.00030134,120]